bitfinex/quotes_ETHUSD_20251117
["timestamp","ask_amount","ask_price","bid_price","bid_amount"]
[1763397142095,0.2,3096.2,3095.0,0.5002]
[1763397142298,0.0988,3096.5,3095.0,0.5002]
[1763397142929,0.0988,3096.5,3095.1,0.16525245]
[1763397143298,0.1976,3097.5,3095.1,0.66445245]
[1763397143299,0.4543,3097.0,3095.1,0.66445245]
[1763397143499,0.6519,3097.5,3095.5,0.405504]
[1763397143742,0.1976,3097.5,3095.9,0.405504]
[1763397143954,0.1976,3097.5,3095.9,1.55782846]
[1763397144185,0.1976,3097.5,3096.0,0.4992]
[1763397144459,0.6519,3097.5,3096.1,0.20570285]
[1763397144660,0.1976,3097.5,3096.3,1.15232446]
[1763397144839,0.1976,3097.5,3096.4,1.15232446]
[1763397145039,0.1976,3097.5,3096.3,1.15232446]
[1763397145255,0.1976,3097.5,3096.1,0.70490285]
[1763397145466,0.4543,3097.1,3096.2,0.18572273]
[1763397145668,0.4543,3097.1,3095.9,0.4992]
[1763397145814,0.405504,3097.4,3095.8,1.15232446]
[1763397146020,0.4543,3097.1,3095.9,1.15232446]
[1763397146243,0.4563,3096.9,3095.7,1.15232446]
[1763397146456,0.4563,3096.9,3095.6,0.1875]
[1763397146655,0.4563,3096.9,3095.7,0.22468171]
[1763397146856,0.002,3096.9,3095.8,0.03230182]
[1763397147166,0.002,3096.9,3096.8,0.593004]
[1763397147368,0.002,3097.6,3096.8,0.593004]
[1763397147369,0.4543,3099.6,3096.9,0.405504]
[1763397147521,0.4543,3099.6,3097.7,1.56020328]
[1763397147725,0.4543,3099.6,3097.8,0.6867]
[1763397148045,0.4543,3099.6,3098.0,1.15469928]
[1763397148245,0.4543,3100.1,3097.9,2.09168321]
[1763397148575,0.4543,3099.5,3098.0,0.4992]
[1763397148866,0.4543,3099.5,3098.0,0.27483919]
[1763397149062,0.4543,3099.5,3098.0,0.4992]
[1763397149248,0.4543,3099.5,3097.8,0.1875]
[1763397149568,0.405504,3099.4,3097.3,1.15469928]
[1763397149773,0.405504,3099.4,3097.2,1.15469928]
[1763397150069,0.4543,3099.4,3097.5,0.405504]
[1763397150277,0.4543,3099.9,3097.7,0.405504]
[1763397150432,0.4543,3099.9,3097.9,0.405504]
[1763397150768,0.4543,3099.7,3098.0,1.15469928]
[1763397151063,0.6543,3100.2,3098.1,0.405504]
[1763397151224,0.6543,3099.8,3098.1,0.4992]
[1763397151439,0.2,3100.2,3098.2,0.405504]
[1763397151790,0.4543,3100.1,3098.2,0.405504]
[1763397151965,0.4543,3100.1,3098.3,0.4992]
[1763397152168,0.4543,3100.1,3097.7,2.56089192]
[1763397152466,0.405504,3100.0,3097.8,0.75528919]
[1763397152669,0.2,3100.5,3098.2,0.405504]
[1763397152870,0.2,3100.5,3098.3,0.4992]
[1763397152871,0.002,3100.2,3098.3,0.4992]
[1763397153177,0.002,3100.2,3098.4,0.405504]
[1763397153582,0.002,3100.2,3098.6,0.405504]
[1763397153754,0.002,3100.2,3098.7,0.4992]
[1763397153954,0.002,3100.2,3098.8,0.405504]
[1763397154160,0.002,3100.2,3098.8,0.1875]
[1763397154380,0.4543,3100.1,3098.8,0.1875]
[1763397154581,0.4543,3100.1,3098.5,0.1875]
[1763397154890,0.405504,3100.0,3098.5,0.1875]
[1763397155043,0.002,3100.2,3097.9,0.1875]
[1763397155044,0.4543,3099.9,3097.9,0.1875]
[1763397155248,0.405504,3099.8,3097.9,0.6867]
[1763397155683,0.405504,3099.6,3097.9,0.6867]
[1763397155994,0.405504,3099.6,3097.0,7.28071386]
[1763397155995,0.405504,3099.6,3097.4,0.4586]
[1763397156143,0.405504,3099.6,3097.7,0.1865]
[1763397156144,0.4982,3099.5,3097.7,0.1865]
[1763397156349,0.405504,3099.4,3097.7,0.1865]
[1763397156778,0.405504,3099.3,3097.7,0.1865]
[1763397157146,0.4982,3099.2,3097.7,0.6451]
[1763397157799,0.4982,3099.2,3097.8,0.4586]
[1763397158000,0.4982,3099.2,3097.7,0.1865]
[1763397158206,0.405504,3099.1,3097.7,0.1865]
[1763397158351,0.405504,3099.1,3097.4,0.4586]
[1763397158557,0.405504,3098.9,3096.8,0.1875]
[1763397158745,0.405504,3098.9,3096.8,0.6461]
[1763397159029,0.405504,3098.9,3096.5,0.1875]
[1763397159030,0.405504,3098.7,3096.5,0.8269876]
[1763397159229,0.405504,3098.7,3096.7,0.4586]
[1763397159526,0.405504,3098.5,3096.7,0.4586]
[1763397160076,0.903704,3098.5,3096.7,0.4586]
[1763397160524,0.4982,3099.2,3096.8,0.43779539]
[1763397160732,0.4982,3099.2,3096.8,0.405504]
[1763397161037,0.4982,3099.2,3096.9,0.4586]
[1763397161327,0.4982,3099.5,3097.0,0.405504]
[1763397161536,0.4982,3099.5,3097.2,0.405504]
[1763397161680,0.2,3100.5,3097.2,0.405504]
[1763397161681,0.625,3099.7,3097.3,0.4586]
[1763397161881,0.4982,3099.6,3097.4,0.405504]
[1763397162077,0.405504,3099.5,3097.5,0.4586]
[1763397162277,0.4982,3099.6,3097.6,0.405504]
[1763397162918,0.4982,3099.6,3097.7,0.6213]
[1763397163305,0.4982,3099.6,3097.8,0.4586]
[1763397164192,0.4982,3099.6,3097.9,0.405504]
[1763397164396,0.4974,3099.6,3097.9,0.405504]
[1763397164719,0.4974,3099.6,3098.0,0.4586]
[1763397165289,0.1268,3099.7,3098.0,0.4586]
[1763397165622,0.1268,3099.7,3098.1,0.405504]
[1763397165844,0.1365,3099.7,3098.3,0.405504]
[1763397166138,0.1365,3099.7,3097.8,0.90699264]
[1763397166280,0.4982,3099.6,3097.7,0.1627]
[1763397166487,0.405504,3099.5,3097.0,0.4586]
[1763397167048,0.405504,3099.3,3097.0,0.4586]
[1763397167389,0.405504,3099.1,3097.1,0.03228826]
[1763397167589,0.405504,3098.9,3096.5,0.83664565]
[1763397167801,0.405504,3098.9,3096.6,0.4586]
[1763397167982,0.1365,3099.7,3096.6,0.4586]
[1763397167983,0.405504,3098.7,3096.6,0.4586]
[1763397168395,0.405504,3098.5,3096.6,0.4586]
[1763397168685,0.6929,3098.6,3096.6,0.4586]
[1763397168882,0.6929,3098.6,3096.7,0.405504]
[1763397169090,0.903704,3098.5,3096.6,0.4586]
[1763397169408,0.1947,3098.6,3096.8,0.405504]
[1763397169611,0.1947,3098.6,3097.0,0.405504]
[1763397169805,0.6929,3098.6,3097.0,0.405504]
[1763397170007,0.6929,3098.6,3097.0,0.4586]
[1763397170208,0.405504,3098.4,3096.7,1.40009679]
[1763397170507,0.405504,3098.4,3096.7,0.24539751]
[1763397170705,0.4982,3098.3,3096.6,0.4586]
[1763397171323,0.405504,3098.2,3097.0,0.001]
[1763397171622,0.4982,3098.1,3097.0,0.001]
[1763397172407,0.4982,3098.5,3097.0,0.4596]
[1763397172609,0.903704,3098.5,3097.0,0.001]
[1763397172824,0.1947,3097.1,3097.0,0.001]
[1763397172989,0.405504,3098.3,3097.0,0.001]
[1763397173190,0.405504,3098.1,3097.0,0.001]
[1763397173649,0.4982,3098.0,3097.0,0.001]
[1763397173939,0.600204,3097.9,3097.0,0.001]
[1763397174374,0.405504,3097.7,3097.0,0.001]
[1763397174816,0.4982,3097.6,3097.0,0.001]
[1763397175022,0.1947,3097.9,3097.0,0.001]
[1763397175387,0.903704,3097.8,3097.0,0.001]
[1763397175550,0.5002,3099.8,3097.9,0.90699264]
[1763397175748,0.5002,3099.8,3098.4,0.90699264]
[1763397175953,0.6347,3099.7,3098.0,0.88554442]
[1763397176262,0.6347,3099.7,3097.3,2.30939856]
[1763397176263,7.94845155,3099.5,3097.4,1.15469928]
[1763397176475,0.90699264,3099.4,3097.4,1.15469928]
[1763397176691,0.4982,3099.3,3097.4,1.15469928]
[1763397176851,0.4982,3099.3,3097.2,1.15469928]
[1763397177025,0.4982,3099.3,3097.1,1.15469928]
[1763397177223,7.94845155,3099.0,3097.1,1.46456344]
[1763397177458,0.405504,3098.8,3097.1,0.30986416]
[1763397177659,0.405504,3098.6,3097.1,0.30986416]
[1763397177835,0.405504,3098.6,3097.0,0.001]
[1763397178137,0.405504,3098.4,3097.0,0.001]
[1763397178342,1.31249664,3098.4,3097.0,0.001]
[1763397178561,0.6929,3098.3,3097.0,0.001]
[1763397178756,0.405504,3098.1,3097.0,0.001]
[1763397179139,0.405504,3097.9,3097.0,0.001]
[1763397179338,0.4982,3098.0,3097.0,0.001]
[1763397179875,0.405504,3097.9,3097.0,0.001]
[1763397180225,0.4982,3097.8,3097.0,0.001]
[1763397180553,0.405504,3097.7,3097.0,0.001]
[1763397180727,0.1947,3097.1,3097.0,0.001]
[1763397181436,0.4982,3097.1,3097.0,0.001]
[1763397182484,0.4982,3099.3,3097.0,0.001]
[1763397182622,0.4982,3099.3,3097.7,0.1865]
[1763397183335,0.1365,3099.7,3098.0,7.94845155]
[1763397183565,0.002,3099.8,3098.3,0.405504]
[1763397183856,0.002,3099.8,3098.4,1.15469928]
[1763397184038,0.5002,3099.8,3098.2,1.15469928]
[1763397184233,0.5002,3099.8,3098.3,1.61329928]
[1763397184822,0.5002,3099.8,3098.3,0.4586]
[1763397185029,0.5002,3099.8,3098.1,0.79484516]
[1763397185030,0.5002,3099.8,3098.1,1.94954444]
[1763397185239,0.5002,3099.8,3098.1,1.15469928]
[1763397185444,0.405504,3099.7,3098.0,1.15469928]
[1763397185644,0.405504,3099.7,3097.9,1.15469928]
[1763397185929,0.002,3099.8,3098.2,1.15469928]
[1763397186146,0.002,3099.8,3098.6,1.15469928]
[1763397186367,0.002,3099.8,3098.7,0.20616919]
[1763397187043,0.002,3099.8,3098.7,1.36086847]
[1763397187227,0.002,3099.8,3098.7,0.20616919]
[1763397187428,0.4956,3099.8,3098.7,0.20616919]
[1763397187661,0.4956,3099.8,3098.4,0.4848]
[1763397187866,0.4956,3099.8,3098.4,1.63949928]
[1763397188073,0.4956,3099.8,3098.4,0.4848]
[1763397188364,0.405504,3099.7,3097.7,1.34119928]
[1763397188564,0.405504,3099.7,3097.7,1.82599928]
[1763397188765,0.4956,3099.8,3097.8,1.82209921]
[1763397188967,0.0012,3099.8,3098.2,1.56020328]
[1763397189287,0.0012,3099.8,3098.9,2.06169192]
[1763397189495,0.0012,3099.8,3098.7,0.90699264]
[1763397189652,0.4956,3099.8,3098.4,1.15469928]
[1763397189983,0.4956,3099.8,3098.5,0.25464919]
[1763397190184,0.4956,3099.8,3098.1,0.90699264]
[1763397190413,0.405504,3099.7,3098.0,0.001]
[1763397190751,0.405504,3099.5,3098.0,0.001]
[1763397191062,0.0012,3099.8,3099.7,0.1755]
[1763397191263,0.0012,3099.8,3099.7,1.065804]
[1763397191494,0.002,3100.2,3099.8,1.31249664]
[1763397191677,0.1947,3102.0,3100.1,1.55938579]
[1763397191985,0.1947,3102.0,3100.4,1.55938579]
[1763397192190,0.1531,3102.4,3100.6,0.405504]
[1763397192393,0.4944,3102.7,3100.5,1.63868179]
[1763397192394,0.1887,3102.7,3101.8,0.19]
[1763397192576,0.4944,3103.2,3101.8,0.19]
[1763397192577,0.1887,3103.0,3101.8,0.19]
[1763397192788,0.1947,3103.3,3101.8,0.6748]
[1763397192998,0.4944,3103.6,3101.8,2.23418579]
[1763397193149,0.4944,3103.0,3101.6,1.15388179]
[1763397193349,0.4944,3103.0,3101.7,0.4848]
[1763397193547,0.6831,3103.7,3101.8,0.405504]
[1763397193754,0.1887,3103.7,3101.8,0.405504]
[1763397193953,0.1887,3104.4,3101.8,0.4848]
[1763397193954,0.1887,3104.0,3101.8,0.4848]
[1763397194188,0.1887,3105.6,3101.8,0.4848]
[1763397194189,0.4944,3105.0,3101.8,3.27853561]
[1763397194493,0.27900081,3105.0,3102.5,0.405504]
[1763397194655,7.10125029,3105.2,3101.9,0.4848]
[1763397194854,7.10125029,3105.2,3101.8,0.29511784]
[1763397194855,0.45742793,3107.1,3106.3,0.595504]
[1763397195050,0.43822793,3108.4,3107.1,1.31249664]
[1763397195295,1.77552686,3108.5,3107.2,2.11278196]
[1763397195518,0.09083496,3108.5,3107.3,0.405504]
[1763397195678,0.09083496,3108.5,3106.3,3.44358394]
[1763397195875,0.09083496,3108.5,3106.4,0.405504]
[1763397196464,0.4944,3108.4,3106.4,0.405504]
[1763397196868,0.4944,3108.4,3106.0,0.405504]
[1763397197081,0.4944,3108.4,3105.8,0.4808]
[1763397197306,1.48309115,3108.3,3105.9,0.405504]
[1763397197608,0.19774911,3108.2,3105.2,0.16857407]
[1763397197812,0.405504,3108.1,3105.2,0.16857407]
[1763397198111,0.405504,3107.9,3105.2,0.16857407]
[1763397198279,0.405504,3107.7,3105.2,0.16857407]
[1763397198480,0.405504,3107.5,3105.2,0.16857407]
[1763397198870,0.405504,3107.5,3105.3,0.4808]
[1763397198871,0.4883,3107.5,3105.3,0.4808]
[1763397199073,0.4883,3107.5,3105.4,0.90699264]
[1763397199417,0.405504,3107.4,3105.3,0.405504]
[1763397199705,0.405504,3107.4,3105.2,0.16857407]
[1763397199929,0.4883,3107.5,3105.2,0.16857407]
[1763397199930,0.405504,3107.2,3105.2,0.16857407]
[1763397200238,0.405504,3107.0,3105.2,0.16857407]
[1763397200570,0.4883,3107.1,3105.3,0.405504]
[1763397200675,0.4883,3107.6,3105.4,0.4808]
[1763397200875,0.4883,3107.6,3105.5,0.43770493]
[1763397201078,0.4883,3108.2,3105.7,0.405504]
[1763397201389,0.4883,3108.8,3106.6,1.31249664]
[1763397201617,0.4883,3108.8,3106.8,0.405504]
[1763397201776,0.4883,3108.8,3105.7,0.4808]
[1763397201777,0.677,3109.5,3107.3,1.31249664]
[1763397201976,0.4883,3109.1,3107.4,0.405504]
[1763397202198,0.4883,3108.6,3106.9,0.5775]
[1763397202399,0.1887,3109.5,3106.9,0.5775]
[1763397202575,0.57913496,3108.5,3106.9,0.1007]
[1763397203013,0.57913496,3108.5,3106.5,0.1007]
[1763397203284,0.405504,3108.4,3106.2,0.90699264]
[1763397203511,0.57913496,3108.5,3106.3,0.83189664]
[1763397203710,0.57913496,3108.5,3106.5,0.405504]
[1763397203877,0.57913496,3108.5,3106.4,0.17388893]
[1763397203878,0.57913496,3108.5,3106.7,0.405504]
[1763397204084,0.09083496,3108.5,3106.9,0.405504]
[1763397204419,0.09083496,3108.5,3107.1,0.405504]
[1763397204721,0.57913496,3108.5,3107.1,0.405504]
[1763397204877,0.57913496,3108.5,3107.1,0.852204]
[1763397204878,0.09083496,3108.5,3107.1,0.852204]
[1763397205080,0.09083496,3108.5,3106.7,7.10125029]
[1763397205081,0.4883,3108.4,3106.5,0.405504]
[1763397205284,0.4883,3108.4,3106.4,0.61248893]
[1763397205488,0.4883,3108.4,3106.5,0.4353]
[1763397205719,0.4883,3108.4,3106.4,0.17388893]
[1763397205927,0.405504,3108.3,3105.5,0.4883]
[1763397206227,0.405504,3108.3,3105.2,0.4808]
[1763397206379,0.405504,3108.1,3104.9,7.10125029]
[1763397206780,0.09083496,3108.5,3104.9,7.10125029]
[1763397206781,0.4883,3108.0,3105.7,0.90699264]
[1763397207040,0.405504,3107.9,3105.8,0.80082429]
[1763397207537,0.405504,3107.7,3105.8,0.80082429]
[1763397207736,0.405504,3107.7,3105.0,7.58205029]
[1763397207915,0.405504,3107.5,3105.0,7.58205029]
[1763397208225,0.405504,3107.5,3105.1,1.38779264]
[1763397208389,0.4883,3107.4,3105.2,0.4796]
[1763397208586,0.4883,3107.4,3105.0,7.10125029]
[1763397208830,0.4883,3107.4,3105.1,2.09791767]
[1763397209039,0.405504,3107.3,3105.1,0.4808]
[1763397209391,0.4883,3107.2,3105.1,0.4808]
[1763397209588,0.405504,3107.1,3104.4,0.6708]
[1763397210029,0.94386354,3108.5,3104.5,0.4775]
[1763397210030,0.4883,3107.0,3104.5,0.4775]
[1763397210341,0.4883,3107.0,3105.0,0.001]
[1763397210501,0.595204,3106.9,3105.0,0.001]
[1763397211006,0.1897,3105.1,3105.0,0.001]
[1763397211734,0.1897,3105.1,3102.9,0.191]
[1763397211913,0.1897,3105.1,3102.9,0.6736]
[1763397212297,0.1897,3105.1,3102.5,0.191]
[1763397212498,0.1897,3105.1,3102.0,0.4826]
[1763397212499,0.893804,3105.0,3102.0,0.4826]
[1763397212733,0.405504,3104.8,3102.0,0.4826]
[1763397213088,0.4883,3104.7,3102.0,0.4826]
[1763397213404,0.405504,3104.6,3102.0,0.4826]
[1763397213813,0.405504,3104.4,3102.0,0.4826]
[1763397213990,0.405504,3104.2,3102.0,0.4826]
[1763397214422,0.1897,3105.1,3102.0,0.4826]
[1763397214423,0.405504,3104.0,3102.0,0.4826]
[1763397214624,0.4883,3104.1,3102.0,0.4826]
[1763397214827,0.405504,3103.9,3101.2,0.5833]
[1763397215029,0.405504,3103.9,3101.2,0.8194233]
[1763397215030,0.405504,3103.7,3101.2,0.8194233]
[1763397215228,0.405504,3103.7,3101.0,0.1506]
[1763397215387,0.405504,3103.7,3100.2,1.148222]
[1763397215388,0.405504,3103.5,3100.6,0.1506]
[1763397215594,0.405504,3103.5,3100.1,0.1506]
[1763397215788,0.405504,3103.3,3099.5,0.454]
[1763397216102,0.405504,3103.3,3098.9,1.722333]
[1763397216103,0.405504,3103.3,3099.4,0.454]
[1763397216303,0.405504,3103.1,3099.4,0.454]
[1763397216692,0.405504,3102.9,3098.8,0.454]
[1763397216891,0.78090501,3102.9,3098.9,1.13207861]
[1763397217130,0.405504,3102.7,3099.0,0.67807861]
[1763397217392,0.4847,3102.6,3099.0,0.67807861]
[1763397218002,0.37540101,3102.5,3098.9,0.454]
[1763397218329,0.37540101,3102.5,3098.5,0.84395263]
[1763397218534,0.4847,3102.4,3098.6,0.67906765]
[1763397218740,0.4847,3102.4,3098.7,0.67906765]
[1763397218906,0.4847,3102.4,3098.8,0.67906765]
[1763397219107,0.4847,3102.4,3098.5,0.454]
[1763397219108,0.4847,3102.4,3098.9,0.67906765]
[1763397219431,0.405504,3102.3,3098.5,0.454]
[1763397219746,0.47762757,3102.2,3098.6,0.03227263]
[1763397219899,0.405504,3102.1,3098.6,0.454]
[1763397220344,0.405504,3101.9,3098.7,0.67942155]
[1763397220852,0.405504,3101.7,3098.7,0.67942155]
[1763397221050,0.405504,3101.7,3098.5,0.454]
[1763397221205,0.405504,3101.5,3098.5,0.454]
[1763397221602,0.405504,3101.3,3098.5,0.454]
[1763397221803,0.405504,3101.9,3098.2,0.191]
[1763397221804,0.405504,3101.1,3098.2,0.191]
[1763397222039,0.405504,3101.1,3098.0,0.001]
[1763397222348,0.405504,3100.9,3098.0,0.001]
[1763397222500,0.405504,3100.7,3098.0,0.001]
[1763397222907,0.405504,3100.5,3098.0,0.001]
[1763397223314,0.37540101,3101.1,3098.0,0.001]
[1763397223315,0.405504,3100.3,3098.0,0.001]
[1763397223942,0.405504,3100.1,3098.0,0.001]
[1763397224305,0.37540101,3101.1,3098.0,0.001]
[1763397224306,0.191,3098.1,3098.0,0.001]
[1763397224717,1.081204,3098.1,3098.0,0.001]
[1763397225750,0.4847,3098.8,3098.0,0.001]
[1763397225958,0.405504,3098.7,3098.0,0.001]
[1763397226317,0.405504,3098.5,3098.0,0.001]
[1763397226740,0.191,3099.0,3098.0,0.001]
[1763397226947,0.4847,3098.9,3098.0,0.001]
[1763397227149,0.191,3099.0,3098.0,0.001]
[1763397227749,0.191,3099.6,3098.1,0.6369]
[1763397228160,0.191,3099.6,3098.2,0.454]
[1763397228673,0.191,3099.6,3098.0,0.001]
[1763397228674,0.405504,3099.4,3098.0,0.001]
[1763397229029,0.191,3099.6,3098.0,0.001]
[1763397229030,0.405504,3099.2,3098.0,0.001]
[1763397229271,1.31249664,3099.0,3098.0,0.001]
[1763397229487,0.405504,3099.0,3098.0,0.001]
[1763397229635,0.890204,3099.0,3098.0,0.001]
[1763397230079,0.405504,3099.0,3098.0,0.1839]
[1763397230231,0.405504,3098.8,3098.0,0.001]
[1763397230970,0.4847,3098.8,3098.0,0.001]
[1763397231547,0.405504,3098.7,3098.0,0.001]
[1763397232068,0.405504,3098.6,3098.0,0.001]
[1763397232489,0.405504,3098.4,3098.0,0.001]
[1763397232984,0.405504,3098.3,3098.0,0.001]
[1763397233175,0.405504,3099.0,3098.0,0.001]
[1763397233336,0.890204,3099.0,3098.0,0.001]
[1763397233533,0.4847,3099.0,3098.0,0.001]
[1763397233749,0.191,3099.1,3098.0,0.001]
[1763397234057,0.191,3098.1,3098.0,0.001]
[1763397234462,0.6757,3098.1,3098.0,0.001]
[1763397235485,1.081204,3098.1,3098.0,0.001]
[1763397238788,0.596504,3098.1,3098.0,0.001]
[1763397239173,0.4847,3098.6,3098.0,0.001]
[1763397239390,0.191,3098.3,3098.0,0.001]
[1763397239554,0.405504,3098.1,3098.0,0.001]
[1763397239979,0.890204,3098.1,3098.0,0.001]
[1763397240198,0.890204,3098.1,3097.6,0.001]
[1763397240381,0.890204,3098.0,3097.6,0.001]
[1763397240580,0.191,3098.3,3097.6,0.001]
[1763397240888,0.405504,3098.2,3097.6,0.001]
[1763397241064,0.890204,3098.2,3097.6,0.001]
[1763397241456,0.191,3098.3,3097.6,0.001]
[1763397241652,1.6377426,3100.9,3097.7,0.1466]
[1763397241860,0.4847,3099.0,3097.7,0.1466]
[1763397242163,0.4847,3099.0,3097.6,0.001]
[1763397242895,0.596504,3097.7,3097.6,0.001]
[1763397243096,0.405504,3097.7,3097.6,0.001]
[1763397243410,0.405504,3098.0,3097.6,0.001]
[1763397243556,0.405504,3098.1,3097.6,0.001]
[1763397243994,0.191,3101.0,3097.7,0.6006]
[1763397244168,0.191,3099.9,3097.9,0.84395263]
[1763397244366,0.6757,3099.6,3098.5,0.84395263]
[1763397244600,0.6757,3099.6,3098.6,0.6867473]
[1763397244894,0.890204,3099.5,3098.1,0.84395263]
[1763397245100,0.4847,3099.4,3098.2,0.68999316]
[1763397245267,0.405504,3099.3,3097.8,0.84395263]
[1763397245592,0.4847,3099.4,3098.1,0.84395263]
[1763397245777,0.4847,3099.4,3098.4,0.84395263]
[1763397246108,0.4847,3099.4,3098.5,0.69162267]
[1763397246417,0.4847,3099.4,3098.6,1.5355753]
[1763397246561,0.4847,3099.4,3098.4,1.148222]
[1763397246562,0.405504,3099.3,3098.7,0.69162267]
[1763397246865,0.4847,3099.4,3098.8,0.69242439]
[1763397247069,0.191,3099.9,3098.9,0.69238843]
[1763397247260,0.4776,3100.5,3099.4,0.84395263]
[1763397247460,0.1864,3100.7,3099.9,0.84395263]
[1763397247691,0.1864,3100.7,3099.6,0.84395263]
[1763397247857,0.4776,3100.6,3099.7,0.69288252]
[1763397248070,0.4776,3100.6,3099.8,0.69288252]
[1763397248271,0.1864,3100.7,3100.0,0.84395263]
[1763397248599,0.4776,3100.6,3100.1,0.69288252]
[1763397248796,0.405504,3100.5,3100.2,0.69288252]
[1763397249003,0.4776,3100.6,3100.3,0.69288252]
[1763397249207,0.4776,3100.5,3099.9,0.84395263]
[1763397249362,0.405504,3100.4,3100.0,0.69301281]
[1763397249574,0.405504,3100.4,3099.7,0.84395263]
[1763397249776,0.405504,3100.4,3099.8,0.69343385]
[1763397250115,0.405504,3100.2,3099.9,0.69343385]
[1763397250316,0.405504,3100.2,3100.0,0.69343385]
[1763397250611,0.883104,3100.2,3100.1,0.69343385]
[1763397250808,0.405504,3100.1,3099.2,0.84395263]
[1763397251009,0.883104,3100.1,3099.3,0.69381635]
[1763397251208,0.1864,3100.7,3099.0,1.148222]
[1763397251209,0.405504,3099.9,3099.4,0.69381635]
[1763397251409,0.405504,3099.9,3098.9,0.84395263]
[1763397251716,0.405504,3099.7,3098.4,0.84395263]
[1763397251916,0.405504,3098.7,3098.0,0.84495263]
[1763397252101,0.405504,3098.7,3098.1,0.69440422]
[1763397252290,0.4776,3098.6,3098.0,0.001]
[1763397252474,0.405504,3098.5,3098.0,0.001]
[1763397252876,0.405504,3098.3,3098.0,0.001]
[1763397253077,0.405504,3098.3,3097.6,0.001]
[1763397253273,0.405504,3098.1,3097.6,0.001]
[1763397253798,0.405504,3097.9,3097.6,0.001]
[1763397254214,0.405504,3097.9,3097.7,0.69437707]
[1763397254374,0.405504,3097.7,3097.6,0.001]
[1763397254778,0.405504,3097.9,3097.6,0.001]
[1763397255089,0.405504,3098.6,3097.6,0.001]
[1763397255283,0.405504,3098.5,3097.6,0.001]
[1763397255684,0.405504,3098.3,3097.6,0.001]
[1763397256113,0.1864,3098.8,3097.6,0.001]
[1763397256114,0.405504,3098.1,3097.6,0.001]
[1763397256321,0.4776,3098.7,3097.6,0.001]
[1763397256635,0.405504,3098.6,3097.6,0.001]
[1763397256976,0.405504,3098.7,3097.6,0.001]
[1763397257380,0.88313157,3098.7,3097.6,0.001]
[1763397257778,0.405504,3098.7,3097.6,0.001]
[1763397257994,1.31249664,3098.7,3097.6,0.001]
[1763397258190,5.19912421,3098.7,3097.6,0.001]
[1763397258393,4.72149664,3098.5,3097.6,0.001]
[1763397258593,4.72149664,3098.5,3097.0,0.001]
[1763397258594,0.405504,3097.3,3097.0,0.001]
[1763397258890,0.405504,3097.3,3096.6,0.001]
[1763397259203,0.405504,3097.1,3095.6,0.0423]
[1763397259404,0.405504,3097.1,3095.7,0.69358106]
[1763397259576,0.405504,3096.9,3095.8,0.69358106]
[1763397259778,0.405504,3096.9,3095.3,0.84395263]
[1763397259982,0.405504,3096.7,3095.4,0.69353309]
[1763397260179,0.405504,3096.5,3095.0,0.84495263]
[1763397260401,0.405504,3096.5,3095.1,0.69296238]
[1763397260616,0.405504,3096.3,3095.2,0.69296238]
[1763397260839,0.405504,3096.3,3095.0,0.001]
[1763397261042,0.405504,3096.3,3095.1,0.69291112]
[1763397261222,0.405504,3096.3,3095.2,0.69291112]
[1763397261427,0.405504,3096.3,3095.3,0.69291112]
[1763397261624,0.405504,3096.3,3095.4,0.69291112]
[1763397261823,0.1854,3096.4,3095.5,0.69291112]
[1763397262136,0.882204,3096.7,3095.6,0.69291112]
[1763397262337,0.405504,3096.6,3095.7,0.69291112]
[1763397262506,0.1854,3097.1,3095.8,0.73521112]
[1763397262838,0.405504,3097.0,3095.9,0.69291112]
[1763397263041,0.882204,3097.0,3095.4,0.84395263]
[1763397263340,0.882204,3097.0,3095.5,1.17946395]
[1763397263518,0.4767,3097.0,3095.6,0.69166395]
[1763397263721,0.1854,3097.4,3095.7,1.17946395]
[1763397263894,0.1854,3097.5,3096.1,0.84395263]
[1763397264097,0.1854,3097.5,3095.7,0.4878]
[1763397264098,0.1854,3097.5,3096.2,0.69166395]
[1763397264312,0.405504,3097.3,3095.8,1.33175263]
[1763397264494,0.1854,3097.5,3095.9,1.1791927]
[1763397264698,0.1854,3097.5,3096.1,0.84395263]
[1763397264999,0.1854,3098.0,3096.5,0.84395263]
[1763397265312,0.1854,3098.0,3096.6,0.6913927]
[1763397265508,0.4767,3097.9,3096.6,0.1514]
[1763397265714,0.4767,3097.9,3095.4,2.30939856]
[1763397265715,0.4767,3097.9,3096.1,0.1514]
[1763397266306,3.63360135,3097.8,3095.6,0.84395263]
[1763397266602,0.405504,3097.6,3095.7,0.4878]
[1763397266822,0.882204,3097.7,3095.5,0.84395263]
[1763397267026,0.405504,3097.4,3095.7,0.84395263]
[1763397267225,0.405504,3097.4,3095.8,0.4878]
[1763397267435,0.405504,3097.2,3095.9,0.001]
[1763397267852,0.405504,3097.2,3095.9,0.4888]
[1763397268204,0.1854,3097.5,3095.9,0.4888]
[1763397268414,0.405504,3097.4,3095.9,0.4888]
[1763397268820,0.405504,3097.4,3095.9,1.33275263]
[1763397269365,0.882204,3097.4,3096.0,0.4878]
[1763397269854,0.1854,3097.5,3095.9,0.001]
[1763397269855,0.405504,3097.2,3095.9,0.001]
[1763397270223,0.405504,3097.1,3095.9,0.001]
[1763397270618,0.405504,3096.9,3095.9,0.001]
[1763397271063,0.405504,3096.7,3095.9,0.001]
[1763397271732,0.405504,3097.4,3095.9,0.001]
[1763397271934,0.405504,3096.5,3095.9,0.001]
[1763397272143,0.4767,3097.3,3095.9,0.001]